{"text_format":"1","workbook":"xlsx","n_sheets":9,"sheets":["Tableau 12","Tableau 13","Tableau 14","Tableau 15","Tableau 16","Tableau 17","Tableau 18 ","Tableau 19","Tableau 20"],"not_rendered":{"charts":0,"images":1,"macros":0,"external_links":0,"defined_names":7,"comments":0,"pivot_tables":0},"unopened":[],"bounds":{"document_bytes":16777216,"sheet_cells":100000,"rows_first":2000,"rows_last":500,"rows_between":2000,"halvings":0,"cell_chars":16384,"cell_head_chars":4096},"cells_cut":0,"cells_raw":0,"read":"whole","date_system":"1900"}

{"sheet":"Tableau 12","index":0,"n_rows":12,"n_cols":5,"rows_kept":12,"cut":false,"hidden":false,"merged":[[10,0,10,3],[11,0,11,3]]}
["Tableau 12:  Abonnements délivrés"]
[]
["en nombre de titres",2016,2017,2018,2019]
["Pass lecture/culture - Bibliothèque tous publics*",29648,37271,37009,39805]
["Pass annuel recherche**",17810,22389,21384,21477]
["Carte 15 entrées**",1632,{"$f":"203+214","v":417}]
["Carte 3 entrées**",8933,{"$f":"1020+937","v":1957}]
["Pass recherche 5 entrées",null,2496,2792,2687]
["Pass recherche 1 entrée",null,7327,9164,9171]
["Total Recherche",{"$f":"SUM(B5:B7)","v":28375},{"$f":"SUM(C5:C9)","v":34586},{"$f":"SUM(D5:D9)","v":33340},{"$f":"SUM(E5:E9)","v":33335}]
["*jusqu'en 2016 ont été soustraites les cartes produites en remplacement de cartes perdues ou détruites"]
["**jusqu'en 2016 n’ont pas été soustraites les cartes produites en remplacement de cartes perdues ou détruites"]

{"sheet":"Tableau 13","index":1,"n_rows":14,"n_cols":5,"rows_kept":14,"cut":false,"hidden":false,"merged":[]}
["Tableau 13 : Fréquentation des salles de lecture"]
[]
[null,2016,2017,2018,2019]
["Rez-de-jardin",285771,302031,309969,302303]
["Richelieu",33883,28679,27043,27571]
["Arsenal",8268,8236,7432,8084]
["Opéra",2128,2076,2036,2198]
["Avignon",4563,6321,4204,6004]
["Sous total RAO",{"$f":"SUM(B5:B8)","v":48842},{"$f":"SUM(C5:C8)","v":45312},{"$f":"SUM(D5:D8)","v":40715},{"$f":"SUM(E5:E8)","v":43857}]
["Total bibliothèque de recherche",{"$f":"B9+B4","v":334613},{"$f":"C9+C4","v":347343},{"$f":"D9+D4","v":350684},{"$f":"E9+E4","v":346160}]
["Haut-de-jardin",472596,507976,507637,504604]
["Estimations Haut-de-jardin hors salles de lecture",67081,66619,66230,70054]
["Total Haut-de-jardin",{"$f":"B11+B12","v":539677},574595,573867,{"$f":"E11+E12","v":574658}]
["Total BnF",{"$f":"B10+B13","v":874290},{"$f":"C10+C13","v":921938},926231,{"$f":"E10+E13","v":920818}]

{"sheet":"Tableau 14","index":2,"n_rows":11,"n_cols":5,"rows_kept":11,"cut":false,"hidden":false,"merged":[]}
["Tableau 14 : Nombre de documents communiqués"]
[]
[null,2016,2017,2018,2019]
["Rez-de-Jardin",708722,705420,670848,780461]
["RAO",136192,175655,200132,161612]
["Total sur support",{"$f":"SUM(B4:B5)","v":844914},881075,870980,{"$f":"SUM(E4:E5)","v":942073}]
["Gallica intramuros",144085,135301,119213,125173]
["Total BnF",{"$f":"B6+B7","v":988999},{"$f":"C6+C7","v":1016376},990193,{"$f":"E6+E7","v":1067246}]
[]
["En 2019, évolution de l'indicateur Rez-de-jardin, pour inclure plus systématiquement les  "]
["demandes de mise de côté communiquées le lendemain"]

{"sheet":"Tableau 15","index":3,"n_rows":21,"n_cols":4,"rows_kept":21,"cut":false,"hidden":false,"merged":[]}
["Tableau 15 : Fréquentation des expositions temporaires (accès payants et gratuits)"]
[]
["En nombre de visites"]
["Fréquentation des expositions temporaires ","Salle",2019,"2018/2019"]
["Les Nadar","Galerie 2 - François-Mitterrand",16858,42814]
["Carte blanche à Jan Dibbets","Galerie 1 - François-Mitterrand",3078,6434]
["Manuscrits de l’extrême","Galerie 1 - François-Mitterrand",13867]
["Le monde en sphères","Galerie 2 - François-Mitterrand",19769]
["Tolkien. Voyage en Terre du Milieu*","Galeries 1 et 2 - François-Mitterrand",72024]
["Total expositions payantes",null,{"$f":"SUM(C5:C9)","v":125596}]
["Vladimir Jankélévitch : figures du philosophe","Galerie des donateurs - François-Mitterrand",12704]
["Antonio Segui","Galerie des donateurs - François-Mitterrand",12382]
["Astérix le Gauloix : aux origines","Galerie des donateurs - François-Mitterrand",2154]
["Denis Brihat : de la nature des choses","Galerie des donateurs - François-Mitterrand",13002]
["Total expositions gratuites",null,{"$f":"SUM(C11:C14)","v":40242}]
["Un air d’Italie : l’Opéra de Paris de Louis XIV à la Révolution","Opéra Garnier",104152]
["Le Grand Opéra : le spectacle de l'histoire*","Opéra Garnier",65555]
["Total expositions site Opéra",null,{"$f":"C16+C17","v":169707}]
[" TOTAL",null,{"$f":"C10+C15+C18","v":335545}]
[]
["* expositions dont l’exploitation s’étend en 2020"]

{"sheet":"Tableau 16","index":4,"n_rows":29,"n_cols":6,"rows_kept":29,"cut":false,"hidden":false,"merged":[]}
["Tableau 16 : Fréquentation des principales manifestations culturelles"]
["Manifestations ayant rassemblé 200 personnes ou plus"]
[]
["Cycle","Titre","Type de manifestation","Date","Lieu","Fréq."]
["Autour de l’exposition Tolkien, voyage en Terre du Milieu","Carte blanche à Adam Tolkien","Conférence","2019-11-14","FM - Grand auditorium",492]
["Autour de l’exposition Tolkien, voyage en Terre du Milieu","L'invention des langues","Conférence","2019-11-28","FM - Grand auditorium",352]
["La Danse verticale en KIT","Hisse-moi, Verticale de poche, Solo ascensionnel et Diagoniales ascendantes","Événement","2019-05-17","FM - Esplanade",350]
["4e journée professionnelle « Systèmes & Données »","N’oubliez pas les données d’autorité […]","Journée professionnelle","2019-11-15","FM - Grand auditorium",330]
["Un texte, un mathématicien","Mathématiques, déraisonnablement efficaces, profondément humaines","Conférence","2019-03-13","FM - Grand auditorium",315]
["Cours méthodique et populaire de philosophie ","Fin de l’idéal ?  Par François Jullien","Conférence","2019-11-05","FM - Grand auditorium",284]
["Ciné-débats : Mettre en scène : théâtre et cinéma","Guillaume Gallienne ","Conférence","2019-01-30","FM - Grand auditorium",283]
["Nuit des idées 2019","Débat et master classes avec France Culture ","Événement","2019-01-31","FM - Frise - Hall Est",280]
["Ciné-débats : Mettre en scène : théâtre et cinéma","Zabou Breitman","Conférence","2019-02-06","FM - Grand auditorium",260]
["-","Du cirque à Richelieu !","Événement","2019-09-28","Richelieu",250]
["Cours méthodique et populaire de philosophie ","Devenir, processus, événement, par François Jullien","Conférence","2019-11-26","FM - Grand auditorium",249]
["Fleurs d'éloquence","8e édition du concours d’art oratoire Sorbonne Universités","Performance","2019-05-07","FM - Grand auditorium",230]
["Cours méthodique et populaire de philosophie ","Si douteuse harmonie","Conférence","2019-04-03","FM - Grand auditorium",222]
["Festival Dionysies","Orestie, trilogie d’Eschyle - Agamemnon, Les Choéphores, Les Euménides","Festival","2019-03-30","FM - Grand auditorium",220]
["-","Les Goûts Réunis. Deux siècles d’une rivalité française et italienne à l’opéra","Concert","2019-06-28","FM - Grand auditorium",220]
["Un texte, un mathématicien","Les graphes, un autre univers en expansion","Conférence","2019-02-20","FM - Grand auditorium",217]
["Cours méthodique et populaire de philosophie ","Le monde ne fait-il qu'un ?","Conférence","2019-01-16","FM - Grand auditorium",216]
["Une collection de master class littéraires","Mathias Énard","Conférence","2019-02-12","FM - Petit auditorium",215]
["-","Regards sur Serge Tisseron. De la tintinologie à la robotique ","Conférence","2019-11-30","FM - Petit auditorium",215]
["Cours méthodique et populaire de philosophie ","Littérature, philosophie","Conférence","2019-04-17","FM - Grand auditorium",212]
["Cours méthodique et populaire de philosophie ","La place d'autrui, par Bernard Sève","Conférence","2019-11-12","FM - Grand auditorium",212]
["Un texte, un mathématicien","De la pomme de Newton aux courants de gravité : un ticket gratuit vers les étoiles ","Conférence","2019-01-23","FM - Grand auditorium",210]
["Ciné-débats : Mettre en scène : théâtre et cinéma","Arnaud Desplechin","Conférence","2019-02-13","FM - Grand auditorium",210]
["Un texte, un mathématicien","Comment découvrir une démonstration pourtant longue et complexe […]","Conférence","2019-04-17","FM - Grand auditorium",205]
["Cours méthodique et populaire de philosophie ","Le passé existe-il quelque part ?","Conférence","2019-01-30","FM - Grand auditorium",202]

{"sheet":"Tableau 17","index":5,"n_rows":24,"n_cols":3,"rows_kept":24,"cut":false,"hidden":false,"merged":[[1,0,1,2],[2,0,2,2],[10,0,10,2],[16,0,16,2]]}
["Tableau 17 : Fréquentation des activités d'éducation artistique et culturelle"]
[]
["Par rapport aux années précédentes, ce tableau prend en compte l'accueil de groupes autonomes et les groupes grand public hors scolaire"]
[]
["Activités","Accueils BnF","Accueils groupes autonomes"]
["Grand public"]
["Visites de la BnF",9009,456]
["Ateliers",1127]
["Visites d'expositions",3036,650]
["Total",{"$f":"SUM(B7:B9)","v":13172},{"$f":"SUM(C7:C9)","v":1106}]
["Scolaires"]
["Visites de la BnF",5194,161]
["Ateliers",5436]
["Visites d'expositions",3264,2013]
["Autres (concours de récitation, journée presse...)",{"$f":"820+535","v":1355}]
["Total",{"$f":"SUM(B12:B15)","v":15249},{"$f":"SUM(C12:C14)","v":2174}]
["Formations enseignants"]
["Formations enseignants",427]
["Hors PAF",371]
["Visites d'expositions",613]
["Journées EAC dans les territoires",251]
["Autres (concours de récitation, journée presse...)",{"$f":"730+72+675+63","v":1540}]
["Total",{"$f":"SUM(B18:B22)","v":3202},{"$f":"SUM(C18:C21)","v":0}]
["TOTAL",{"$f":"B10+B16+B23","v":31623},{"$f":"C10+C16+C23","v":3280}]

{"sheet":"Tableau 18 ","index":6,"n_rows":15,"n_cols":5,"rows_kept":15,"cut":false,"hidden":false,"merged":[]}
["Tableau 18 : L'offre documentaire de Gallica "]
[]
[null,2016,2017,2018,2019]
["Monographies",343943,370460,389775,425412]
["Fascicules de périodiques",1785167,1976433,2349523,3500459]
["Documents iconographiques",1240129,1513998,1257843,1402067]
["Cartes et plans",102538,137008,156630,170210]
["Documents sonores",35329,47404,47521,47612]
["Manuscrits",60420,69292,78569,92140]
["Musique notée",42868,46110,49588,47233]
["Vidéos",18,733,1338,1638]
["Objets",178784,179267,179342,222776]
["Nombre total de documents",{"$f":"SUM(B4:B12)","v":3789196},{"$f":"SUM(C4:C12)","v":4340705},{"$f":"SUM(D4:D12)","v":4510129},{"$f":"SUM(E4:E12)","v":5909547}]
[]
["(hors documents uniquement indexés et hors Gallica intra muros)"]

{"sheet":"Tableau 19","index":7,"n_rows":24,"n_cols":5,"rows_kept":24,"cut":false,"hidden":false,"merged":[[21,0,21,4]]}
["Tableau 19 : La fréquentation de Gallica"]
[]
[null,2016,2017,2018,2019]
["gallica.bnf.fr*",11987267,13468641,15242033,14926804]
["lecteur exportable",134107,50908,19200,8363]
["application",337185,371010,312182,259304]
["Site mobile gallica.bnf.fr/m*",1523994,1757629]
["Gallica intra-muros",39455,41404,44771,45823]
["Gallica Labs",642]
["Gallicadabra",null,7706,7050,9725]
["Gallica studio",null,11867,34498,28227]
["Numistral",17478,21502,38534,43655]
["Grande Collecte",13675,8848,36601,22325]
["Rotomagus",null,9890,20661,21691]
["Bibliothèque numérique du RFN",null,13724,26133,27672]
["Bibliothèque diplomatique numérique",null,null,39769,34091]
["France-Angleterre",null,null,20126,85979]
["Numba",null,null,null,20667]
["IIIF-Gallica**",183449,20614]
["Nombre total de visites",{"$f":"SUM(B4:B19)","v":14237252},{"$f":"SUM(C4:C19)","v":15783743},{"$f":"SUM(D4:D19)","v":15841558},{"$f":"SUM(E4:E19)","v":15534326}]
[]
["En italiques : services ouverts en cours d'année."]
["* mesures fusionnées en octobre 2017 entre site mobile et site principal"]
["** arrêt de la mesure en mars 2017"]

{"sheet":"Tableau 20","index":8,"n_rows":15,"n_cols":2,"rows_kept":15,"cut":false,"hidden":false,"merged":[]}
["Tableaux 20 : Les partenaires de Gallica au 31 décembre 2019"]
[]
["Les partenaires de Gallica par types de partenaires","1997-2019"]
["Partenaires des territoires",256]
["Partenaires de l’Enseignement supérieur et de la recherche",64]
["Autres partenaires",91]
["Bibliothèques étrangères",16]
["Total des partenaires de Gallica",427]
["(toutes filières)"]
[]
["Nombre de documents des partenaires accessibles dans Gallica par filières","Fin 2019"]
["Intégration par numérisation des documents dans les marchés et ateliers de la BnF",231890]
["Intégration des fichiers numériques",104743]
["Référencement par moissonnage des bibliothèques numériques partenaires",627146]
["Total des documents des partenaires",{"$f":"SUM(B12:B14)","v":963779}]